[Event "New York Spring GM-A 2022"]
[Site "New York"]
[Date "2022.04.16"]
[Round "4.1"]
[White "Belous, Vladimir"]
[Black "Liang, Jason"]
[Result "1-0"]
[ECO "A13"]
[WhiteElo "2516"]
[BlackElo "2419"]
[Annotator "TA"]
[PlyCount "109"]
[EventDate "2022.04.14"]
[EventType "tourn"]
[EventCountry "USA"]
[SourceTitle "playchess.com"]
[Source "ChessBase"]
[SourceQuality "1"]
[TimeControl "5400+30"]

{[%evp 11,109,8,4,10,10,13,9,0,0,0,0,0,0,0,-3,0,-14,-14,0,0,-12,0,0,0,0,0,0,0,0,-13,-7,-18,18,-16,0,0,3,-179,-138,-157,-97,-81,0,0,0,0,0,0,0,0,0,0,0,0,0,0,0,0,0,0,0,0,0,0,0,0,0,0,0,0,0,0,0,0,0,0,0,0,0,0,0,0,0,0,0,0,0,0,0,0,0,0,0,0,0,0,476,396,12850,12850]} 1. c4 {[%emt 0:03:06]} e6 {[%emt 0:00:05]} 2. Nf3 {[%emt 0:00:04]} d5 {[%emt 0:00:07]} 3. g3 {[%emt 0:00:02]} dxc4 {[%emt 0:00:25]} 4. Qa4+ {[%emt 0:00:24]} Nd7 {[%emt 0:00:21]} 5. Qxc4 {[%emt 0:00:07]} a6 {[%emt 0:00:18]} 6. Bg2 {[%emt 0:02:50]} b5 {[%emt 0:00:13]} 7. Qc6 {[%emt 0:00:42] A13: English Opening: 1...e6.} Rb8 {[%emt 0:01:07]} 8. Qc2 {[%emt 0:03:54]} Bb7 {[%emt 0:00:25]} 9. O-O {[%emt 0:00:07] The position is equal.} c5 {[%emt 0:00:25]} 10. a4 {[%emt 0:03:14]} Ngf6 {[%emt 0:01:18]} 11. d3 {[%emt 0:05:25]} Be7 {[%emt 0:00:34]} 12. Bf4 {[%emt 0:02:47]} Rc8 {[%emt 0:01:23]} 13. axb5 {[%emt 0:01:43]} axb5 {[%emt 0:00:06]} 14. Na3 {[%emt 0:00:34]} Qb6 {[%emt 0:03:36]} 15. Qb3 {[%emt 0:00:53]} Bc6 {[%emt 0:00:48]} 16. Ne5 {[%emt 0:00:48]} Bxg2 {[%emt 0:01:30]} 17. Kxg2 {[%emt 0:00:13]} g5 $1 {[%emt 0:01:11]} 18. Nxd7 {[%emt 0:06:22]} Nxd7 {[%emt 0:00:07]} 19. Be3 {[%emt 0:00:07]} Rb8 {[%emt 0:00:35] [#]} 20. Kg1 $146 {[%emt 0:00:49]} ({Predecessor:} 20. f4 Qc6+ 21. Kg1 g4 22. f5 e5 23. Nb1 h5 24. Nc3 Nf6 25. Ra7 h4 26. gxh4 {1-0 (40) Gretarsson,H (2450)-Kuijf,M (2470) Wijk aan Zee 1996}) 20... f5 {[%emt 0:08:36]} 21. Nc2 {[%emt 0:07:06][%cal Oc2b4]} Rg8 {[%emt 0:04:20]} 22. f3 {[%emt 0:13:19]} f4 {[%emt 0:05:29]} 23. Bf2 {[%emt 0:01:38]} g4 {[%emt 0:00:59]} 24. Nb4 $2 {[%emt 0:06:33]} fxg3 $1 $19 {[%emt 0:01:17]} 25. hxg3 {[%emt 0:03:28]} gxf3 {[%emt 0:00:26]} (25... Qd6 $142 $1 {aiming for ...gxf3.} 26. Ra6 Rb6 27. Ra8+ Bd8) 26. Ra6 $17 {[%emt 0:03:12] [#]} ({Wrong is} 26. exf3 $2 Qd6 27. Ra6 Nb6 $19) 26... c4 {[%emt 0:46:08]} (26... fxe2 $1 $17 27. Re1 Qc7 28. Rxe2 cxb4 29. Raxe6 Rg7) 27. Rxb6 $11 {[%emt 0:01:36]} (27. Bxb6 $2 {perishes.} cxb3 28. Ba5 fxe2 $19) 27... cxb3 {[%emt 0:00:07]} 28. Rxe6 {[%emt 0:00:06] Nc6 is the strong threat.} Kf7 $1 {[%emt 0:00:13][%csl LRb4,LRe6]} 29. Rxe7+ {[%emt 0:04:45]} Kxe7 {[%emt 0:00:07]} 30. Nc6+ {[%emt 0:00:14]} Kd6 {[%emt 0:00:21]} 31. Nxb8 {[%emt 0:00:05]} fxe2 {[%emt 0:00:06]} 32. Re1 {[%emt 0:00:03]} Rxb8 {[%emt 0:01:12]} 33. Rxe2 {[%emt 0:00:06][%mdl 4096] Endgame KRB-KRN} Rc8 {[%emt 0:05:36]} 34. Bd4 {[%emt 0:01:20]} Rc2 {[%emt 0:02:00]} 35. Kf2 {[%emt 0:00:13]} Kd5 {[%emt 0:00:11]} 36. Bg7 {[%emt 0:00:55]} Nc5 {[%emt 0:00:38]} 37. Ke3 {[%emt 0:00:27]} b4 {[%emt 0:07:05]} 38. Bf8 {[%emt 0:04:03]} Na4 {[%emt 0:00:41]} 39. Bg7 {[%emt 0:01:25]} Ke6 {[%emt 0:02:34]} 40. g4 {[%emt 0:03:06]} Kf7 {[%emt 0:00:24]} 41. Be5 {[%emt 0:01:55]} Kg6 {[%emt 0:00:19]} 42. Re1 {[%emt 0:02:14]} Kg5 {[%emt 0:00:46]} 43. Rh1 {[%emt 0:00:30]} Nxb2 {[%emt 0:00:51]} 44. Rb1 {[%emt 0:03:47]} Na4 {[%emt 0:01:24] Strongly threatening ...b2.} 45. Rxb3 {[%emt 0:00:05]} Nc3 {[%emt 0:00:57]} 46. Bd6 {[%emt 0:01:17]} Nd1+ {[%emt 0:03:21]} 47. Kf3 {[%emt 0:00:59]} Rc3 {[%emt 0:02:43]} 48. Bf4+ {[%emt 0:00:05]} Kg6 {[%emt 0:00:06]} 49. Rxb4 {[%emt 0:00:04] Black must now prevent Ke2.} Rxd3+ {[%emt 0:00:06]} 50. Ke2 {[%emt 0:00:04]} Rd5 {[%emt 0:00:25]} 51. Rb6+ {[%emt 0:00:46]} Kf7 {[%emt 0:00:23]} 52. Rb3 {[%emt 0:00:07] Hoping for Bd2.} Kg6 {[%emt 0:00:26]} 53. Bc1 {[%emt 0:04:21]} Kf7 $2 {[%emt 0:01:37][%mdl 8192] [#]} (53... h5 $11 {and Black stays safe.}) 54. Bd2 $1 $18 {[%emt 0:00:18]} Rf5 $2 {[%emt 0:00:31]} (54... Rd4 55. g5 (55. Kxd1 Rxg4 56. Be3 Rg2 $11) 55... Rd7 56. Kxd1 Kg6 57. Rb6+ Kf5) 55. gxf5 {[%emt 0:00:12] Quite a comeback for White.  Weighted Error Value: White=0.09 (flawless) /Black=0.24 (precise)} 1-0

[Event "New York Spring GM-A 2022"]
[Site "New York"]
[Date "2022.04.16"]
[Round "4.2"]
[White "Guo, Arthur"]
[Black "Nagy, Gabor"]
[Result "0-1"]
[ECO "B08"]
[WhiteElo "2412"]
[BlackElo "2530"]
[Annotator "TA"]
[PlyCount "94"]
[EventDate "2022.04.14"]
[EventType "tourn"]
[EventCountry "USA"]
[SourceTitle "playchess.com"]
[Source "ChessBase"]
[SourceQuality "1"]
[TimeControl "5400+30"]

{[%evp 11,94,35,37,39,47,39,38,28,41,44,31,31,38,26,34,23,25,35,60,62,60,54,64,63,66,67,74,67,75,75,101,13,5,0,62,63,121,113,114,115,113,113,168,88,131,22,44,-26,-23,-39,-40,-34,-34,-282,-288,-449,-434,-611,-618,-602,-529,-4905,-1798,-1641,-599,-593,-565,-1618,-1615,-601,-586,-2695,-8575,-12838,-12839,-12839,-12839,-12842,-12843,-29987,-12844,-29987,-29988,-29989,-29990]} 1. e4 {[%emt 0:00:30]} g6 {[%emt 0:00:30]} 2. d4 {[%emt 0:00:30]} Bg7 {[%emt 0:00:30]} 3. Nc3 {[%emt 0:00:29]} d6 {[%emt 0:00:00]} 4. Nf3 {[%emt 0:01:12]} Nf6 {[%emt 0:00:00]} 5. Be2 {[%emt 0:00:12]} O-O {[%emt 0:00:00]} 6. O-O {[%emt 0:00:15]} e6 {[%emt 0:00:00]} 7. Re1 {[%emt 0:09:12] B08: Pirc Defence: Classical System.} Nc6 {[%emt 0:00:07]} 8. Bf4 {[%emt 0:02:33]} a6 {[%emt 0:02:20]} 9. a4 {[%emt 0:04:10] White is slightly better.} b6 {[%emt 0:02:24]} 10. Qd2 {[%emt 0:00:46]} Bb7 {[%emt 0:02:10][%cal Oe6e5]} 11. Bg5 {[%emt 0:06:12]} e5 {[%emt 0:08:07]} 12. dxe5 {[%emt 0:08:21]} dxe5 {[%emt 0:01:11]} 13. Qxd8 {[%emt 0:05:35] [#]} (13. Rad1 {feels hotter.} Qxd2 14. Rxd2 Rac8 15. Bxf6 Bxf6 16. Nd5) 13... Raxd8 $146 {[%emt 0:00:53]} ({Predecessor:} 13... Nxd8 14. Bc4 h6 15. Bh4 Re8 16. Rad1 Rc8 17. Nd5 g5 18. Nxf6+ Bxf6 19. Bg3 Kg7 {½-½ (43) Sileika,A (2009)-Salnaitis,A (2254) ICCF email 2019}) 14. Nd5 {[%emt 0:14:26] Prevents Nb4.} Nxd5 {[%emt 0:07:50]} 15. Bxd8 {[%emt 0:00:04]} Rxd8 {[%emt 0:00:44]} 16. exd5 {[%emt 0:00:05]} Nb4 {[%emt 0:00:07]} 17. Bd3 {[%emt 0:03:47]} (17. c4 Nc2 $17) 17... Nxd3 {[%emt 0:05:20]} 18. cxd3 {[%emt 0:00:02]} Rxd5 {[%emt 0:00:10]} 19. Rac1 $36 {[%emt 0:11:05][%mdl 2048] White is pushing.} c5 {[%emt 0:00:29]} 20. b4 $1 {[%emt 0:00:33]} h6 {[%emt 0:00:20]} (20... cxb4 $2 21. Rc7 $18) 21. d4 {[%emt 0:08:17]} ({White should try} 21. h3 $16) 21... exd4 $11 {[%emt 0:01:22]} 22. Re8+ {[%emt 0:01:05]} Bf8 {[%emt 0:01:13]} (22... Kh7 $11) 23. Rb8 $14 {[%emt 0:00:36]} Bc6 {[%emt 0:11:41]} (23... Rd7 $1 $14) 24. b5 $1 $16 {[%emt 0:01:42]} (24. Rxb6 $6 Bxa4 25. Rxa6 (25. bxc5 Bxc5 26. Rxa6 Bb5 $11) 25... Bb5 $11) 24... axb5 {[%emt 0:02:00]} 25. Rxb6 {[%emt 0:00:04]} Bd7 {[%emt 0:02:01] And now ...d3 would win.} 26. a5 $1 {[%emt 0:01:28] Threatens to win with a6.} (26. axb5 $6 d3 27. Nd2 Bd6 $11) 26... Rd6 {[%emt 0:02:59]} (26... d3 $16 27. a6 d2) 27. Ne5 {[%emt 0:02:16]} (27. Rxd6 $1 $18 Bxd6 28. a6) 27... Bc8 {[%emt 0:03:36]} 28. Rb8 {[%emt 0:04:03]} (28. Rxc5 Rxb6 29. Rxc8 Re6 $11) (28. Rxb5 $16 Rd5 29. Nf3 (29. Rb8 Ba6 $14)) 28... Be6 $1 $11 {[%emt 0:01:52]} 29. Rxb5 {[%emt 0:06:17]} (29. Rxc5 $2 d3 30. Rc6 (30. Rbxb5 $2 d2 $19) 30... Rd5 $19) (29. Ra1 $1 $14 d3 30. Nxd3 $1 (30. Rxb5 $2 c4 $19) (30. a6 $2 d2 $19) 30... Rxd3 31. a6) 29... d3 $1 {[%emt 0:00:37][%cal Oc5c4,Bd4d3,Bd3d2][%mdl 32]} 30. Rb6 {[%emt 0:01:18] aiming for Rxd6.} (30. Rbxc5 $2 d2 31. Rd1 Bb3 $19) 30... Rd5 {[%emt 0:00:28][%mdl 1024] Black has compensation.} 31. Nc4 {[%emt 0:02:40]} Rd4 {[%emt 0:00:42]} 32. Nb2 {[%emt 0:02:06] This move loses the game for White.} (32. Nd2 Ra4 33. a6 Bc8 $17) (32. Ne3 $15 Ra4 33. a6) 32... c4 $19 {[%emt 0:00:55] White must now prevent ...d2.} 33. Nd1 {[%emt 0:02:22]} (33. Rc6 $142 Ba3 34. R1xc4 Bxc4 35. Nxc4 (35. Rc8+ $2 Kg7 $19)) 33... d2 {[%emt 0:00:46]} 34. Ra1 {[%emt 0:00:20]} (34. Rcb1 $142 Bf5 35. f3 (35. Ra1 $2 Re4 $19)) 34... Re4 {[%emt 0:00:09][%cal Re4e1]} 35. Ne3 {[%emt 0:01:26]} Bc5 {[%emt 0:00:49] Hoping for ...c3.} 36. Rb5 {[%emt 0:01:53]} Bxe3 {[%emt 0:02:09]} (36... Rxe3 $142 37. fxe3 Bxe3+ 38. Kf1 c3) 37. fxe3 {[%emt 0:00:01]} Rxe3 {[%emt 0:00:08][%mdl 4096] Endgame KRR-KRB} (37... c3 $142 {( -> ...c2)} 38. Rb8+ Kg7) 38. Kf2 {[%emt 0:00:09] [#]} Ra3 {[%emt 0:02:11][%mdl 512]} 39. Rbb1 {[%emt 0:00:45]} (39. Rd1 c3) 39... Rxa1 {[%emt 0:00:05]} 40. Rxa1 {[%emt 0:00:01] KR-KB} c3 {[%emt 0:00:06]} ({But not} 40... Bg4 41. a6 Bf5 42. a7 $18) 41. Ke3 {[%emt 0:01:10]} Bc4 {[%emt 0:00:07]} (41... Bg4 $2 42. a6 Bd7 43. a7 $18 (43. Kd3 d1=Q+ 44. Rxd1 Bb5+ 45. Kxc3 Bxa6 $16)) 42. Rb1 {[%emt 0:00:53]} Kg7 {[%emt 0:00:15]} 43. Ra1 {[%emt 0:00:32]} f5 {[%emt 0:00:18][%cal Of5f4]} 44. g3 {[%emt 0:00:20]} g5 {[%emt 0:00:05][%cal Of5f4]} 45. Rb1 {[%emt 0:00:23]} Ba6 {[%emt 0:00:31]} (45... f4+ $142 46. gxf4 gxf4+ 47. Kd4 {[#]} c2 $1 48. Rb7+ Kf6 49. Kc5 d1=Q $1 50. Kb6 Qd4+ 51. Kc7 c1=Q 52. Rb6+ Be6+ 53. Kb8 Qc8+ 54. Ka7 Qdd7+ 55. Rb7 Qdxb7#) 46. Rg1 {[%emt 0:00:37]} Kf6 {[%emt 0:00:22]} 47. Rb1 {[%emt 0:00:38]} Ke5 {[%emt 0:00:09] Weighted Error Value: White=1.00/Black=0.36} 0-1

[Event "New York Spring GM-A 2022"]
[Site "New York"]
[Date "2022.04.16"]
[Round "4.4"]
[White "Barbosa, Oliver"]
[Black "Ostrovskiy, Aleksandr"]
[Result "1/2-1/2"]
[WhiteElo "2505"]
[BlackElo "2409"]
[Annotator "TA"]
[PlyCount "34"]
[EventDate "2022.04.14"]
[EventType "tourn"]
[EventCountry "USA"]
[SourceTitle "playchess.com"]
[Source "ChessBase"]
[SourceQuality "1"]
[TimeControl "5400+30"]

{[%evp 12,14,22,8,20]} 1. Nf3 {[%emt 0:00:05]} d5 {[%emt 0:03:42]} 2. g3 {[%emt 0:00:15]} c5 {[%emt 0:01:47]} 3. Bg2 {[%emt 0:01:14]} Nc6 {[%emt 0:00:39]} 4. d4 {[%emt 0:00:30]} Nf6 {[%emt 0:03:04]} 5. O-O {[%emt 0:00:43]} e6 {[%emt 0:01:53]} 6. c4 {[%emt 0:01:00]} dxc4 {[%emt 0:00:22]} 7. dxc5 {[%emt 0:02:56]} Qxd1 {[%emt 0:01:56] [#] Not much happened in this game. E04: Open Catalan: 5 Nf3.} {Predecessor:} 8. Rxd1 $146 Bxc5 9. Nbd2 b5 10. a4 Ba6 11. Ng5 Nd5 12. Nde4 Bb4 13. Nc3 Bxc3 14. bxc3 b4 15. Ne4 O-O 16. Nc5 Bc8 17. cxb4 Ncxb4 {½-½ (74) Keymer,V (2664)-Aronian,L (2772) chess24.com INT 2022} 1/2-1/2

[Event "New York Spring GM-A 2022"]
[Site "New York"]
[Date "2022.04.17"]
[Round "5.1"]
[White "Song, Edward"]
[Black "Belous, Vladimir"]
[Result "0-1"]
[ECO "B36"]
[WhiteElo "2383"]
[BlackElo "2516"]
[Annotator "TA"]
[PlyCount "58"]
[EventDate "2022.04.14"]
[EventType "tourn"]
[EventCountry "USA"]
[SourceTitle "playchess.com"]
[Source "ChessBase"]
[SourceQuality "1"]
[TimeControl "5400+30"]

{[%evp 30,58,52,50,49,47,52,58,57,52,45,14,18,0,0,-20,-15,-9,-14,-9,-6,-20,-18,-426,-432,-518,-505,-596,-589,-566,-547]} 1. e4 {[%emt 0:00:02]} c5 {[%emt 0:04:56]} 2. Nf3 {[%emt 0:00:07]} Nc6 {[%emt 0:00:17]} 3. d4 {[%emt 0:00:05]} cxd4 {[%emt 0:00:08]} 4. Nxd4 {[%emt 0:00:04]} g6 {[%emt 0:01:02]} 5. c4 {[%emt 0:00:32]} Nf6 {[%emt 0:00:06]} 6. Nc3 {[%emt 0:00:04]} d6 {[%emt 0:00:03]} 7. f3 {[%emt 0:00:41]} Nxd4 {[%emt 0:00:08]} 8. Qxd4 {[%emt 0:00:04]} Bg7 {[%emt 0:00:03]} 9. Be3 {[%emt 0:00:11]} O-O {[%emt 0:00:07]} 10. Qd2 {[%emt 0:00:05]} Be6 {[%emt 0:00:39]} 11. Rc1 {[%emt 0:04:18]} Qa5 {[%emt 0:02:31]} 12. b3 {[%emt 0:00:21]} Rfc8 {[%emt 0:00:51]} 13. Be2 {[%emt 0:00:22]} a6 {[%emt 0:00:02]} 14. Na4 {[%emt 0:00:18]} Qxd2+ {[%emt 0:00:02]} 15. Kxd2 {[%emt 0:00:09]} Nd7 {[%emt 0:00:05]} 16. g4 {[%emt 0:00:05]} Rcb8 {[%emt 0:00:03] B36: Sicilian: Maroczy Bind: Gurgenidze System.} 17. Nc3 {[%emt 0:04:52] Inhibits b5.} b5 {[%emt 0:00:36]} 18. Nd5 {[%emt 0:05:00]} Bxd5 {[%emt 0:00:02] White is slightly better.} 19. cxd5 {[%emt 0:00:08]} Nc5 {[%emt 0:00:00]} 20. b4 {[%emt 0:23:31]} Na4 {[%emt 0:01:33] [#]} 21. Rc2 $146 {[%emt 0:02:22]} ({Predecessor:} 21. Rc7 a5 22. bxa5 Rxa5 23. Rhc1 Nc5 24. Rc2 Rba8 25. Rxe7 Rxa2 26. Bxb5 Nb3+ 27. Kd3 Rxc2 28. Kxc2 {½-½ (46) Areshchenko,A (2675)-Miton,K (2589) Germany 2021}) 21... a5 {[%emt 0:08:10]} 22. a3 {[%emt 0:23:12]} Bb2 $1 {[%emt 0:01:51]} 23. Rb1 {[%emt 0:15:08]} Bxa3 {[%emt 0:00:39]} 24. bxa5 {[%emt 0:00:10]} Rxa5 {[%emt 0:02:30][%cal Ba8a5,Ba5a2,Ba2h2,Bh2g2][%mdl 32]} 25. Ra2 {[%emt 0:01:16]} Nc5 {[%emt 0:00:40][%cal Oa3c1] Threatens to win with ...Bc1+!} 26. Bxc5 $2 {[%emt 0:02:03][%mdl 8192] [#]} (26. Kd1 $11 {and White stays safe.}) 26... Bc1+ $1 $19 {[%emt 0:00:41][%mdl 576] Discovered Attack. Black is clearly winning.} 27. Kxc1 {[%emt 0:11:29]} (27. Rxc1 Rxa2+) 27... Rxa2 {[%emt 0:00:05]} 28. Bc4 {[%emt 0:00:03]} Rxh2 {[%emt 0:00:34] Hoping for ...Rh1+.} 29. Bg1 {[%emt 0:04:24]} Rg2 {[%emt 0:00:11] White did not feel at home in the position after the opening.  Weighted Error Value: White=0.75/Black=0.00 (flawless)} 0-1

[Event "New York Spring GM-A 2022"]
[Site "New York"]
[Date "2022.04.17"]
[Round "5.2"]
[White "Ostrovskiy, Aleksandr"]
[Black "Korley, Kassa"]
[Result "1/2-1/2"]
[ECO "C43"]
[WhiteElo "2409"]
[BlackElo "2399"]
[Annotator "TA"]
[PlyCount "112"]
[EventDate "2022.04.14"]
[EventType "tourn"]
[EventCountry "USA"]
[SourceTitle "playchess.com"]
[Source "ChessBase"]
[SourceQuality "1"]
[TimeControl "5400+30"]

{[%evp 9,112,28,31,30,43,35,46,50,48,50,49,49,47,46,48,40,64,71,100,109,93,97,114,121,123,122,124,125,125,122,165,154,152,156,159,159,159,159,159,159,159,137,130,0,151,118,166,150,151,133,188,151,205,199,183,127,169,149,148,0,178,0,162,126,126,106,108,106,106,83,83,84,98,0,50,0,105,70,133,139,173,173,173,172,160,145,154,154,145,152,145,148,152,0,73,0,148,53,78,78,84,0,72,0,81]} 1. e4 {[%emt 0:02:37]} e5 {[%emt 0:00:04]} 2. Nf3 {[%emt 0:00:33]} Nf6 {[%emt 0:00:06]} 3. d4 {[%emt 0:03:18]} Nxe4 {[%emt 0:00:15]} 4. Bd3 {[%emt 0:00:14]} Nc6 {[%emt 0:00:06]} 5. Nxe5 {[%emt 0:02:12]} Nxe5 {[%emt 0:01:06]} 6. dxe5 {[%emt 0:00:38] C43: Petroff Defence: 3 d4.} d5 {[%emt 0:00:10]} 7. exd6 {[%emt 0:05:20] [#]} Nc5 $146 {[%emt 0:00:13]} ({Predecessor:} 7... Nxd6 8. O-O Be7 9. Nc3 O-O 10. Nd5 Bf5 11. Bf4 Bg6 12. c4 b6 13. Re1 Re8 14. Bxg6 hxg6 {1-0 (33) Nakamura,H (2749)-Duda,J (2731) Saint Louis 2019}) 8. dxc7 {[%emt 0:02:04] White is slightly better.} Nxd3+ {[%emt 0:00:04]} 9. cxd3 {[%emt 0:05:58][%cal Bc2d3,Bd3d4,Bd4d5,Bd5d6][%mdl 32]} Qxc7 {[%emt 0:00:11]} 10. O-O {[%emt 0:00:21]} Be7 {[%emt 0:01:37]} 11. Nc3 {[%emt 0:00:54]} O-O {[%emt 0:03:19]} 12. Qf3 {[%emt 0:08:00]} Be6 {[%emt 0:01:58]} 13. d4 {[%emt 0:04:14]} Bc4 {[%emt 0:05:15]} 14. Rd1 {[%emt 0:01:45]} Bd6 {[%emt 0:02:21]} 15. h3 {[%emt 0:01:36]} Rfe8 {[%emt 0:01:50]} 16. Be3 {[%emt 0:02:42]} Rac8 {[%emt 0:05:08]} 17. Rac1 {[%emt 0:05:21]} Qd7 {[%emt 0:01:25]} 18. d5 $1 {[%emt 0:12:28]} b6 {[%emt 0:02:28]} 19. Bf4 {[%emt 0:17:42]} Bb4 {[%emt 0:01:23]} 20. Qg3 {[%emt 0:01:58]} f6 {[%emt 0:06:08] Against Be5} 21. d6 {[%emt 0:04:53]} Bxc3 {[%emt 0:09:12]} 22. Rxc3 {[%emt 0:00:23]} Be6 {[%emt 0:00:12]} 23. Rxc8 {[%emt 0:10:39]} Rxc8 {[%emt 0:00:04]} 24. Re1 {[%emt 0:00:08]} Re8 {[%emt 0:00:23]} 25. Rc1 {[%emt 0:00:21] Strongly threatening Rc7.} Rc8 {[%emt 0:00:11]} 26. Re1 {[%emt 0:00:03]} Re8 $1 {[%emt 0:00:02]} 27. b3 {[%emt 0:02:46][%cal Bb2b3,Bb3b4][%mdl 32]} Kf7 {[%emt 0:00:14]} (27... Bf5 $16 28. Rd1 Rd8) 28. Qd3 {[%emt 0:00:46]} h6 {[%emt 0:01:07]} 29. Bg3 {[%emt 0:03:22]} Rc8 {[%emt 0:00:25]} (29... Qc6 $16 {was worth a try.}) 30. Kh2 {[%emt 0:01:05]} Rc5 {[%emt 0:00:06]} (30... b5 $16 {was called for.} 31. Qd2 a6) 31. b4 {[%emt 0:00:42]} Rc8 {[%emt 0:00:26]} 32. Qe2 {[%emt 0:00:11]} (32. a4 $1 $18) 32... Re8 {[%emt 0:02:20]} 33. Qa6 {[%emt 0:01:08]} Rc8 {[%emt 0:01:01] Against Rc1} 34. Qe2 {[%emt 0:00:10]} Re8 $1 {[%emt 0:00:04]} 35. Qa6 {[%emt 0:00:14]} Rc8 $1 {[%emt 0:00:02] Against Rc1} 36. Re3 {[%emt 0:00:20]} b5 {[%emt 0:08:29]} 37. Ra3 {[%emt 0:00:30]} Rc4 {[%emt 0:00:15]} 38. Qxa7 {[%emt 0:00:46]} Rxb4 {[%emt 0:00:07]} 39. Qb6 {[%emt 0:01:04]} Ra4 {[%emt 0:00:44] Against Ra7} 40. Rc3 $36 {[%emt 0:00:16][%mdl 2048] Hoping for Rc7. White is really pushing.} Rc4 {[%emt 0:00:33]} 41. Ra3 {[%emt 0:00:08]} (41. Rd3 $16) 41... Ra4 $14 {[%emt 0:00:04]} 42. Rc3 {[%emt 0:00:01]} (42. Qc5 $14) 42... Rc4 $1 $16 {[%emt 0:00:03]} 43. Re3 {[%emt 0:00:24]} h5 {[%emt 0:02:18] [#]} (43... g5 $14) 44. h4 $1 {[%emt 0:00:48]} Ra4 {[%emt 0:05:02]} 45. Qc5 {[%emt 0:01:20]} Rxa2 {[%emt 0:06:36]} 46. Qxh5+ {[%emt 0:00:02]} Kg8 {[%emt 0:00:05]} 47. Rc3 {[%emt 0:00:59] Black must now prevent Rc7.} Ra7 {[%emt 0:00:57]} 48. Qc5 {[%emt 0:00:32]} Ra4 {[%emt 0:03:25]} 49. Qb6 {[%emt 0:00:27]} Rc4 {[%emt 0:00:18] [#]} 50. Ra3 {[%emt 0:00:09]} Ra4 {[%emt 0:00:16] Inhibits Ra7.} 51. Rc3 {[%emt 0:00:01]} ({White should try} 51. Re3) 51... Rc4 {[%emt 0:00:05]} 52. Ra3 {[%emt 0:00:35]} (52. Rd3 $142) 52... Ra4 {[%emt 0:00:07]} 53. Qb8+ {[%emt 0:01:18]} (53. Re3 $16) 53... Kf7 {[%emt 0:05:04]} 54. Rc3 {[%emt 0:00:13] And now Rc7 would win.} Rc4 {[%emt 0:00:06]} 55. Ra3 {[%emt 0:00:06] Ra7 is the strong threat. &Bianco is much more active.} Ra4 {[%emt 0:00:04] Inhibits Ra7.} 56. Rc3 {[%emt 0:01:10] aiming for Rc7.} Rc4 $1 {[%emt 0:00:05] Black defended with fortune.  Weighted Error Value: White=0.25 (precise) /Black=0.07 (flawless)} 1/2-1/2